fUST/lending_fUST_20241016
["ID","MTS","AMOUNT","RATE_DAILY","PERIOD"]
[340333253,1729055438221,-287.2336601,0.00020303,2]
[340333254,1729055438231,-4574.3265428,0.00020336,2]
[340333255,1729055438241,-300.0,0.00020347,2]
[340333256,1729055438250,-300.0,0.00020347,2]
[340333257,1729055438260,-3000.0,0.00020348,2]
[340333258,1729055438269,-341.146109,0.00020348,2]
[340333259,1729055438278,-1320.7277485,0.00020402,2]
[340333260,1729055438287,-227.918756,0.00020405,2]
[340333261,1729055438297,-227.918756,0.00020461,2]
[340333262,1729055438418,-227.918756,0.00020517,2]
[340333263,1729055438428,-227.918756,0.00020573,2]
[340333264,1729055438437,-227.918756,0.00020629,2]
[340333265,1729055438446,-227.918756,0.00020685,2]
[340333266,1729055438455,-227.918756,0.00020741,2]
[340333267,1729055438464,-227.918756,0.00020797,2]
[340333268,1729055438473,-153.0,0.000208,2]
[340333269,1729055438482,-218.07875708,0.00020826,2]
[340333270,1729055438492,-227.918756,0.00020853,2]
[340333271,1729055438502,-227.918756,0.00020908,2]
[340333272,1729055438512,-153.0,0.00020941,2]
[340333273,1729055438522,-153.0,0.00020941,2]
[340333274,1729055438531,-443.7858342,0.00020941,2]
[340333275,1729055438541,-306.0,0.00020941,2]
[340333276,1729055438551,-153.0,0.00020941,2]
[340333277,1729055438560,-227.918756,0.00020964,2]
[340333278,1729055438570,-150.9750297,0.00021,2]
[340333279,1729055438580,-212.6900073,0.00021,2]
[340333280,1729055438589,-153.0,0.00021,2]
[340333281,1729055438599,-153.0,0.00021,2]
[340333282,1729055438609,-153.0,0.00021,2]
[340333283,1729055438618,-153.0,0.00021,2]
[340333284,1729055438628,-153.0,0.00021,2]
[340333285,1729055438637,-153.0,0.00021,2]
[340333286,1729055438646,-227.918756,0.0002102,2]
[340333287,1729055438656,-341.146109,0.00021033,2]
[340333288,1729055438666,-227.918756,0.00021076,2]
[340333289,1729055438676,-491.6434585,0.00021078,2]
[340333290,1729055438685,-301.731027,0.00021096,2]
[340333291,1729055438695,-387.564213,0.00021096,2]
[340333292,1729055438704,-828.1483632,0.00021096,2]
[340333293,1729055438714,-153.0,0.000211,2]
[340333294,1729055438723,-227.918756,0.00021132,2]
[340333295,1729055438733,-227.918756,0.00021188,2]
[340333296,1729055438743,-465.8271459,0.00021224,2]
[340333297,1729055438752,-227.918756,0.00021244,2]
[340333298,1729055438762,-153.0,0.00021293,2]
[340333299,1729055438771,-153.0,0.00021293,2]
[340333300,1729055438781,-227.918756,0.000213,2]
[340333301,1729055438791,-227.918756,0.00021356,2]
[340333302,1729055438802,-446.0810405,0.0002137,2]
[340333303,1729055438812,-210.4166343,0.0002137,2]
[340333304,1729055438822,-210.4166343,0.0002137,2]
[340333305,1729055438831,-210.4166343,0.0002137,2]
[340333306,1729055438843,-210.4166343,0.0002137,2]
[340333307,1729055438852,-210.4166343,0.0002137,2]
[340333308,1729055438864,-169.97086354,0.0002137,2]
[340333316,1729055440406,-265.83843426,0.0002137,2]
[340333317,1729055440416,-6404.77389339,0.00021394,2]
[340333318,1729055440425,-227.918756,0.00021412,2]
[340333319,1729055440434,-227.918756,0.00021468,2]
[340333320,1729055440443,-796.518577,0.00021562,2]
[340333321,1729055440452,-414.3746803,0.00021562,2]
[340333322,1729055440462,-414.3746803,0.00021562,2]
[340333323,1729055440471,-414.3746803,0.00021562,2]
[340333324,1729055440481,-918.37765311,0.0002167,2]
[340333325,1729055440490,-156.83564512,0.00021673,2]
[340333326,1729055440500,-156.83564512,0.000217,2]
[340333327,1729055440509,-847.83497526,0.000217,2]
[340333328,1729055440518,-341.146109,0.00021718,2]
[340333329,1729055440527,-29480.4874782,0.0002176,3]
[340333330,1729055440537,-7346.71732688,0.0002176,3]
[340333331,1729055440546,-533.88,0.00021762,3]
[340333332,1729055440555,-14740.2437391,0.0002177,3]
[340333333,1729055440565,-3673.35866344,0.0002177,3]
[340333334,1729055440574,-500.0,0.00021771,2]
[340333335,1729055440583,-500.0,0.00021771,2]
[340333336,1729055440592,-500.0,0.00021771,2]
[340333337,1729055440602,-600.0,0.00021771,2]
[340333338,1729055440611,-500.0,0.00021771,2]
[340333339,1729055440620,-500.0,0.00021771,2]
[340333340,1729055440630,-500.0,0.00021771,2]
[340333341,1729055440639,-500.0,0.00021771,2]
[340333342,1729055440648,-500.0,0.00021771,2]
[340333343,1729055440657,-500.0,0.00021771,2]
[340333344,1729055440667,-500.0,0.00021771,2]
[340333345,1729055440676,-370.51560138,0.00021771,2]
[340333346,1729055440685,-500.0,0.00021771,2]
[340333347,1729055440696,-500.0,0.00021771,2]
[340333348,1729055440707,-500.0,0.00021771,2]
[340333349,1729055440717,-500.0,0.00021771,2]
[340333350,1729055440727,-500.0,0.00021773,2]
[340333351,1729055440739,-500.0,0.00021773,2]
[340333352,1729055440748,-500.0,0.00021773,2]
[340333353,1729055440757,-500.0,0.00021773,2]
[340333354,1729055440766,-500.0,0.00021773,2]
[340333355,1729055440780,-502.6385532,0.00021773,2]
[340333356,1729055440789,-500.0,0.00021773,2]
[340333357,1729055440799,-631.33034496,0.00021773,2]
[340333358,1729055440810,-500.0,0.00021773,2]
[340333359,1729055440822,-500.0,0.00021773,2]
[340333360,1729055440832,-500.0,0.00021773,2]
[340333361,1729055440845,-500.0,0.00021773,2]
[340333362,1729055440859,-500.0,0.00021773,2]
[340333363,1729055440868,-316.62839135,0.00021773,2]
[340333364,1729055440879,-262.4308153,0.00021773,2]
[340333365,1729055440889,-500.0,0.00021773,2]
[340333366,1729055440900,-500.0,0.00021773,2]
[340333367,1729055440912,-407.78922445,0.00021773,2]
[340333368,1729055440923,-500.0,0.00021773,2]
[340333369,1729055440932,-500.0,0.00021773,2]
[340333370,1729055440943,-500.0,0.00021773,2]
[340333371,1729055440953,-500.0,0.00021773,2]
[340333372,1729055440965,-500.0,0.00021773,2]
[340333373,1729055440978,-502.22263542,0.00021773,2]
[340333374,1729055440987,-504.76618322,0.00021773,2]
[340333375,1729055440998,-44220.7312173,0.0002178,3]
[340333376,1729055441007,-11020.0759903,0.0002178,3]
[340333377,1729055441019,-228.3778288,0.00021789,2]
[340333378,1729055441030,-248.2233807,0.00021789,2]
[340333379,1729055441039,-219.9915092,0.00021789,2]
[340333380,1729055441139,-590.98335862,0.00021789,2]
[340333381,1729055441149,-471.50118723,0.00021789,2]
[340333382,1729055441158,-132662.193652,0.0002179,3]
[340333383,1729055441167,-51427.0212882,0.0002179,3]
[340333384,1729055441177,-593261.45805116,0.000218,2]
[340333417,1729056052125,1000.0,0.0002,2]
[340333424,1729056240513,10000.0,0.00027,60]
[340333425,1729056250429,10000.0,0.00020201,120]
[340333426,1729056259072,10000.0,0.00027,60]
[340333428,1729056299197,10000.0,0.0002,90]
[340333429,1729056307948,10000.0,0.00020201,120]
[340333430,1729056319774,10000.0,0.00020201,120]
[340333437,1729056516375,11009.0,0.0002,2]
[340333542,1729056634657,1039.573127,0.00019932,2]
[340333550,1729056635105,-163.128196,0.00020273,2]
[340333552,1729056635115,-163.128196,0.00020344,2]
[340333554,1729056635124,-151.32963724,0.00020414,2]
[340333556,1729056635135,-11.79855876,0.00020414,2]
[340333558,1729056635145,-163.128196,0.00020485,2]
[340333560,1729056635155,-144.38576524,0.00020504,2]
[340333563,1729056635166,-21.06714476,0.00020504,2]
[340333565,1729056635178,-163.128196,0.00020555,2]
[340333567,1729056635188,-1039.573127,0.00020617,2]
[340333569,1729056635199,-163.128196,0.00020626,2]
[340333571,1729056635208,-153.77540887,0.00020667,2]
[340333573,1729056635217,-163.128196,0.00020696,2]
[340333575,1729056635227,-153.0,0.00020741,2]
[340333577,1729056635235,-153.0,0.00020741,2]
[340333578,1729056635245,-153.0,0.00020741,2]
[340333579,1729056635255,-745.5857168,0.00020741,2]
[340333580,1729056635264,-163.128196,0.00020767,2]
[340333581,1729056635273,-2403.08979944,0.00020807,2]
[340333582,1729056635282,-163.128196,0.00020837,2]
[340333583,1729056635291,-163.128196,0.00020907,2]
[340333584,1729056635299,-163.128196,0.00020978,2]
[340333585,1729056635309,-300.0,0.00020999,2]
[340333586,1729056635319,-300.0,0.00020999,2]
[340333587,1729056635328,-153.0,0.00021,2]
[340333588,1729056635337,-306.0,0.00021,2]
[340333589,1729056635346,-153.0,0.00021,2]
[340333590,1729056635355,-153.0,0.00021,2]
[340333591,1729056635365,-163.128196,0.00021048,2]
[340333592,1729056635376,-163.128196,0.00021119,2]
[340333593,1729056635386,-163.128196,0.00021189,2]
[340333594,1729056635395,-6043.69222242,0.00021192,2]
[340333595,1729056635404,-7639.7766294,0.00021193,2]
[340333596,1729056635413,-163.128196,0.0002126,2]
[340333597,1729056635424,-3995.09291328,0.00021268,2]
[340333598,1729056635433,-3286.87241645,0.00021289,2]
[340333599,1729056635442,-383.5885525,0.00021293,2]
[340333600,1729056635451,-163.128196,0.0002133,2]
[340333601,1729056635461,-1167.90737061,0.0002133,2]
[340333602,1729056635471,-181.98848877,0.000216,2]
[340333603,1729056635480,-7639.7766295,0.00021617,2]
[340333604,1729056635489,-191.57,0.0002169,2]
[340333605,1729056635498,-156.05419699,0.00021699,2]
[340333606,1729056635508,-1000.0,0.000217,2]
[340333607,1729056635516,-857.30819085,0.00021734,2]
[340333608,1729056635525,-501.05674957,0.00021773,2]
[340333609,1729056635535,-500.51098215,0.00021773,2]
[340333610,1729056635544,-310.26493964,0.00021773,2]
[340333654,1729056638357,-1039.573127,0.00021302,2]
[340333655,1729056638369,-189.73506036,0.00021773,2]
[340333656,1729056638381,-500.0,0.00021773,2]
[340333657,1729056638391,-500.0,0.00021773,2]
[340333658,1729056638524,-500.0,0.00021773,2]
[340333659,1729056638536,-502.67836408,0.00021773,2]
[340333660,1729056638545,-500.0,0.00021773,2]
[340333661,1729056638554,-500.0,0.00021773,2]
[340333662,1729056638563,-500.91211814,0.00021773,2]
[340333663,1729056638572,-500.0,0.00021773,2]
[340333664,1729056638581,-500.0,0.00021773,2]
[340333665,1729056638590,-500.0,0.00021773,2]
[340333666,1729056638600,-500.0,0.00021773,2]
[340333667,1729056638611,-399.69164562,0.00021773,2]
[340333668,1729056638623,-176.71,0.0002178,3]
[340333669,1729056638635,-214.59,0.0002178,3]
[340333670,1729056638646,-643.79,0.0002178,3]
[340333671,1729056638655,-5663.7706623,0.0002178,3]
[340333703,1729056643259,-500.0,0.00021773,2]
[340333704,1729056643270,-12283.1875123,0.0002178,3]
[340333705,1729056643280,-500.0,0.00021789,2]
[340333706,1729056643291,-287.16592205,0.00021789,2]
[340333707,1729056643300,-500.0,0.00021789,2]
[340333708,1729056643323,-500.0,0.00021789,2]
[340333709,1729056643336,-500.0,0.00021789,2]
[340333710,1729056643349,-500.0,0.00021789,2]
[340333711,1729056643362,-500.0,0.00021789,2]
[340333712,1729056643372,-500.0,0.00021789,2]
[340333713,1729056643386,-500.0,0.00021789,2]
[340333714,1729056643396,-500.0,0.00021789,2]
[340333715,1729056643406,-500.0,0.00021789,2]
[340333716,1729056643419,-500.0,0.00021789,2]
[340333717,1729056643429,-500.0,0.00021789,2]
[340333718,1729056643439,-500.0,0.00021789,2]
[340333719,1729056643449,-500.0,0.00021789,2]
[340333720,1729056643459,-500.0,0.00021789,2]
[340333721,1729056643470,-500.0,0.00021789,2]
[340333722,1729056643479,-296.1664971,0.00021789,2]
[340333723,1729056643489,-500.0,0.00021789,2]
[340333724,1729056643499,-500.0,0.00021789,2]
[340333725,1729056643508,-500.0,0.00021789,2]
[340333726,1729056643519,-500.0,0.00021789,2]
[340333727,1729056643529,-500.0,0.00021789,2]
[340333728,1729056643538,-500.0,0.00021789,2]
[340333729,1729056643548,-500.0,0.00021789,2]
[340333730,1729056643558,-500.0,0.00021789,2]
[340333731,1729056643568,-500.0,0.00021789,2]
[340333732,1729056643578,-500.0,0.00021789,2]
[340333733,1729056643587,-500.0,0.00021789,2]
[340333734,1729056643597,-500.0,0.00021789,2]
[340333735,1729056643607,-500.0,0.00021789,2]
[340333736,1729056643617,-500.0,0.00021789,2]
[340333737,1729056643626,-500.0,0.00021789,2]
[340333738,1729056643636,-500.0,0.00021789,2]
[340333739,1729056643646,-500.0,0.00021789,2]
[340333740,1729056643656,-500.0,0.00021789,2]
[340333741,1729056643666,-500.0,0.00021789,2]
[340333742,1729056643677,-500.0,0.00021789,2]
[340333743,1729056643687,-500.0,0.00021789,2]
[340333744,1729056643697,-500.0,0.00021789,2]
[340333745,1729056643707,-500.0,0.00021789,2]
[340333746,1729056643717,-285.07894953,0.00021789,2]
[340333747,1729056643726,-500.0,0.00021789,2]
[340333748,1729056643736,-500.0,0.00021789,2]
[340333749,1729056643745,-500.0,0.00021789,2]
[340333750,1729056643755,-500.0,0.00021789,2]
[340333751,1729056643766,-500.0,0.00021789,2]
[340333752,1729056643776,-500.0,0.00021789,2]
[340333753,1729056643786,-500.0,0.00021789,2]
[340333754,1729056643797,-500.0,0.00021789,2]
[340333755,1729056643808,-500.0,0.00021789,2]
[340333756,1729056643817,-488.38556052,0.00021789,2]
[340333771,1729056646107,-11.61443948,0.00021789,2]
[340333772,1729056646117,-500.0,0.00021789,2]
[340333773,1729056646127,-500.0,0.00021789,2]
[340333774,1729056646139,-500.0,0.00021789,2]
[340333775,1729056646149,-500.0,0.00021789,2]
[340333776,1729056646158,-500.0,0.00021789,2]
[340333777,1729056646167,-500.0,0.00021789,2]
[340333778,1729056646176,-393.65717185,0.00021789,2]
[340333779,1729056646187,-500.0,0.00021789,2]
[340333780,1729056646196,-500.0,0.00021789,2]
[340333781,1729056646206,-500.0,0.00021789,2]
[340333782,1729056646215,-500.0,0.00021789,2]
[340333783,1729056646224,-500.0,0.00021789,2]
[340333784,1729056646235,-500.0,0.00021789,2]
[340333785,1729056646246,-500.0,0.00021789,2]
[340333786,1729056646255,-500.0,0.00021789,2]
[340333787,1729056646265,-500.0,0.00021789,2]
[340333788,1729056646274,-499.99999999,0.00021789,2]
[340333789,1729056646283,-71787.8326982,0.0002179,3]
[340333790,1729056646293,-253.9558449,0.00021799,2]
[340333791,1729056646303,-225.29643431,0.00021799,2]
[340333792,1729056646312,-493.06102274,0.00021799,2]
[340333793,1729056646322,-413.09786704,0.00021799,2]
[340333794,1729056646343,-229.33543488,0.00021799,2]
[340333795,1729056646353,-145673.25999457,0.000218,2]
[340333796,1729056646364,-150.112233,0.000218,3]
[340333797,1729056646374,-218.44009,0.000218,5]
[340333798,1729056646388,-293.004595,0.000218,2]
[340333799,1729056646400,-151.0,0.000218,2]
[340333800,1729056646412,-479.490877,0.000218,2]
[340333801,1729056646422,-479.490877,0.000218,2]
[340333802,1729056646433,-151.0,0.000218,2]
[340333803,1729056646442,-314.099061,0.000218,2]
[340333804,1729056646453,-314.099061,0.000218,2]
[340333805,1729056646463,-151.0,0.000218,2]
[340333806,1729056646472,-152.382848,0.000218,2]
[340333807,1729056646482,-259.832394,0.000218,2]
[340333808,1729056646492,-259.832394,0.000218,2]
[340333809,1729056646502,-542.824093,0.000218,2]
[340333810,1729056646512,-542.824093,0.000218,2]
[340333811,1729056646523,-6123.875718,0.000218,2]
[340333812,1729056646533,-6123.875718,0.000218,2]
[340333813,1729056646543,-1444.645025,0.000218,2]
[340333814,1729056646553,-1444.645025,0.000218,2]
[340333815,1729056646563,-90601.10811955,0.000218,2]
[340333817,1729056912881,1891.84613549,0.0002,2]
[340333818,1729056920880,5000.0,0.0002,2]
[340333820,1729056936771,1603.05265,0.0002,2]
[340333845,1729057046990,6298.2409745,0.0001,2]
[340333864,1729057381758,164.244536,0.00019541,2]
[340333867,1729057456568,250.0,0.00019815,2]
[340333890,1729057558054,166.663615,0.00019852,2]
[340333891,1729057558286,166.663615,0.00019938,2]
[340333893,1729057699812,24900.0,0.00019509,2]
[340333894,1729057711470,1139.7706436,0.00019867,2]
[340333897,1729057737514,1181.2290525,0.00019858,2]
[340333898,1729057764600,150.0,0.00027,60]
[340333899,1729057803636,8061.543869,0.00019995,2]
[340333995,1729057840263,-166.663615,0.00020025,2]
[340333996,1729057840273,-166.663615,0.00020111,2]
[340333997,1729057840283,-166.663615,0.00020197,2]
[340333998,1729057840293,-166.663615,0.00020283,2]
[340333999,1729057840302,-166.663615,0.0002037,2]
[340334000,1729057840311,-448.822728,0.00020429,2]
[340334001,1729057840320,-166.663615,0.00020456,2]
[340334002,1729057840329,-508.43371124,0.00020528,2]
[340334003,1729057840338,-166.663615,0.00020542,2]
[340334004,1729057840347,-508.43371124,0.00020572,2]
[340334005,1729057840358,-1513.96470882,0.00020615,2]
[340334006,1729057840371,-1362.0486556,0.00020615,2]
[340334007,1729057840380,-508.43371124,0.00020615,2]
[340334008,1729057840389,-166.663615,0.00020628,2]
[340334009,1729057840399,-300.0,0.00020709,2]
[340334010,1729057840408,-300.0,0.0002071,2]
[340334011,1729057840417,-166.663615,0.00020714,2]
[340334012,1729057840426,-166.663615,0.00020801,2]
[340334013,1729057840435,-166.663615,0.00020887,2]
[340334014,1729057840445,-465.0413573,0.00021171,2]
[340334015,1729057840454,-2876.01336435,0.00021241,2]
[340334016,1729057840464,-628.69272625,0.00021254,2]
[340334017,1729057840473,-193.8033371,0.00021254,2]
[340334018,1729057840482,-153.0,0.000213,2]
[340334019,1729057840491,-500.0,0.00021354,7]
[340334020,1729057840500,-500.0,0.00021354,7]
[340334021,1729057840509,-97.89578726,0.00021354,7]
[340334022,1729057840520,-469.36421274,0.00021354,7]
[340334023,1729057840529,-37.14876474,0.00021673,2]
[340334024,1729057840541,-962.85123526,0.00021673,2]
[340334025,1729057840550,-782.6,0.0002169,3]
[340334026,1729057840559,-1447.03743393,0.0002169,3]
[340334027,1729057842603,2007.198747,0.00019897,2]
[340334030,1729057843558,-1273.51145981,0.00020582,2]
[340334076,1729058096329,581.5158011,0.00019805,2]
[340334080,1729058311476,24900.0,0.00019873,2]
[340334081,1729058347952,913.628678,0.00019917,2]
[340334082,1729058460213,7706.8192129,0.00019894,2]
[340334086,1729058714883,10000.0,0.00027,60]
[340334087,1729058755775,673.234093,0.00019941,2]
[340334089,1729058780974,6000.0,0.0002,2]
[340334099,1729058889949,24900.0,0.00019873,2]
[340334100,1729058890654,609.085785,0.00019998,2]
[340334141,1729059040544,-165.45291,0.00020113,2]
[340334143,1729059040554,-166.666666,0.00020185,2]
[340334145,1729059040564,-300.0,0.00020242,2]
[340334147,1729059040575,-300.0,0.00020242,2]
[340334149,1729059040583,-12695.49854246,0.00020243,2]
[340334152,1729059040619,-712.554604,0.00020243,2]
[340334393,1729059227096,164.244536,0.00019939,2]
[340334398,1729059548737,24900.0,0.00019961,2]
[340334401,1729059732702,3189.98767925,0.00019765,2]
[340334404,1729059779155,336.617047,0.00019984,2]
[340334410,1729060076899,165.45291,0.00019966,2]
[340334415,1729060161885,1000.0,0.0002,2]
[340334417,1729060186887,467.52174146,0.0002,2]
[340334576,1729060238826,-300.0,0.0002028,2]
[340334577,1729060238835,-1854.2388,0.00020281,2]
[340334578,1729060238847,-2036.72879408,0.00020281,2]
[340334682,1729060271442,10000.0,0.00020201,120]
[340334685,1729060319493,10000.0,0.0002,90]
[340334687,1729060336487,10000.0,0.00027,60]
[340334689,1729060358399,10000.0,0.0002,30]
[340334693,1729060373900,10000.0,0.00020201,120]
[340334697,1729060392121,10000.0,0.00027,60]
[340334702,1729060426757,10000.0,0.00020201,120]
[340334704,1729060443183,10000.0,0.00027,60]
[340334706,1729060473472,10000.0,0.0002,30]
[340334709,1729060488990,10000.0,0.00020201,120]
[340334722,1729060579150,10000.0,0.0002,90]
[340334726,1729060594950,10000.0,0.00027,60]
[340334727,1729060605000,1669.848995,0.00019767,2]
[340334729,1729060610740,10000.0,0.00027,60]
[340334733,1729060673587,10000.0,0.00020201,120]
[340334736,1729060730521,10000.0,0.00027,60]
[340334739,1729060750118,10000.0,0.00027,60]
[340334740,1729060769641,14927.5512953,0.00019518,2]
[340334742,1729060795327,10000.0,0.00027,60]
[340334744,1729060811443,10000.0,0.00020201,120]
[340334745,1729060831092,10000.0,0.0002,90]
[340334747,1729060846304,10000.0,0.0002,30]
[340334763,1729061112877,168.308523,0.00019472,2]
[340334764,1729061141692,1311.474514,0.00019496,2]
[340334769,1729061212608,3202.6638815,0.00019653,2]
[340334771,1729061288203,250.0,0.00019794,2]
[340334772,1729061288427,250.0,0.00019848,2]
[340334773,1729061288637,250.0,0.00019902,2]
[340334774,1729061288923,250.0,0.00019957,2]
[340334794,1729061432129,-250.0,0.00020011,2]
[340334796,1729061432141,-250.0,0.00020065,2]
[340334797,1729061432151,-250.0,0.0002012,2]
[340334799,1729061432160,-250.0,0.00020174,2]
[340334801,1729061432170,-439.07268963,0.00020181,2]
[340335609,1729061445815,-872.40182437,0.00020181,2]
[340335610,1729061445826,-250.0,0.00020228,2]
[340335611,1729061445836,-250.0,0.00020282,2]
[340335612,1729061445846,-250.0,0.00020337,2]
[340335613,1729061445858,-1013.40051437,0.0002035,2]
[340335614,1729061445870,-1000.0000009,0.0002038,2]
[340335615,1729061445880,-250.0,0.00020391,2]
[340335616,1729061445890,-250.0,0.00020445,2]
[340335617,1729061445902,-250.0,0.00020499,2]
[340335618,1729061445912,-364.7526321,0.000205,2]
[340335619,1729061445921,-250.0,0.00020554,2]
[340335620,1729061445931,-153.0,0.000206,2]
[340335621,1729061445941,-250.0,0.00020608,2]
[340335622,1729061445952,-230.169107,0.00020636,2]
[340335623,1729061445962,-1558.956546,0.00020636,2]
[340335624,1729061445971,-4560.795836,0.00020636,2]
[340335625,1729061445981,-1558.956546,0.00020636,2]
[340335626,1729061445991,-4560.795836,0.00020636,2]
[340335627,1729061446000,-250.0,0.00020662,2]
[340335628,1729061446010,-250.0,0.00020717,2]
[340335629,1729061446019,-778.60491374,0.00020725,2]
[340335630,1729061446028,-1262.81897818,0.00020726,3]
[340335631,1729061446038,-8853.84933427,0.00020726,3]
[340335638,1729061709447,437.158171,0.00019721,2]
[340335639,1729061743117,165.45291,0.00019402,2]
[340335640,1729061778986,168.3085245,0.00019698,2]
[340335642,1729061865303,166.666666,0.00019774,2]
[340335643,1729061865511,166.666666,0.00019828,2]
[340335644,1729061865743,166.666666,0.00019882,2]
[340335645,1729061865982,166.666666,0.00019936,2]
[340335646,1729061866201,166.666666,0.00019991,2]
[340335675,1729062221259,1454.469116,0.00019464,2]
[340335676,1729062228893,189.274449,0.00019178,2]
[340335678,1729062361600,300.0,0.0002,2]
[340335679,1729062369710,250.0,0.00019765,2]
[340335680,1729062369928,250.0,0.00019819,2]
[340335681,1729062370186,250.0,0.00019873,2]
[340335682,1729062370401,250.0,0.00019927,2]
[340335683,1729062370781,250.0,0.00019982,2]
[340335684,1729062376617,251.48193905,0.0002,3]
[340335685,1729062451715,427.86,0.0002,7]
[340335687,1729062467711,301.57542835,0.0002,2]
[340335689,1729062538876,1148.6516303,0.0001958,2]
[340335690,1729062612533,3560.64269,0.00019427,2]
[340335775,1729062638478,-250.0,0.00020036,2]
[340335777,1729062638488,-470.51782559,0.00020062,2]
[340335780,1729062638498,-250.0,0.0002009,2]
[340335782,1729062638507,-250.0,0.00020144,2]
[340335784,1729062638517,-1454.469116,0.00020149,2]
[340335786,1729062638527,-250.0,0.00020198,2]
[340335788,1729062638536,-250.0,0.00020253,2]
[340335790,1729062638546,-250.0,0.00020307,2]
[340335792,1729062638557,-250.0,0.00020361,2]
[340335794,1729062638566,-250.0,0.00020415,2]
[340335796,1729062638577,-250.0,0.0002047,2]
[340335798,1729062638587,-250.0,0.00020524,2]
[340335800,1729062638598,-771.57737181,0.00020526,2]
[340335802,1729062638608,-250.0,0.00020578,2]
[340335804,1729062638617,-150.112233,0.000206,2]
[340335807,1729062638630,-150.112233,0.000206,2]
[340335809,1729062638640,-440.59,0.00020606,3]
[340335811,1729062638649,-220.29,0.00020606,3]
[340335813,1729062638659,-164.42575926,0.00020606,3]
[340336044,1729062734354,3500.0,0.0002,2]
[340336047,1729062861244,-1170464.17383472,0.000205,2]
[340336048,1729062861269,-6985.31108668,0.00020516,2]
[340336049,1729062861299,-150.112233,0.000206,5]
[340336050,1729062861324,-300.0,0.00020605,2]
[340336051,1729062861352,-300.0,0.00020605,2]
[340336052,1729062861378,-2273.07416072,0.00020606,3]
[340336053,1729062861403,-31479.32868488,0.00020606,3]
[340336054,1729062878933,155.90573146,0.0002,2]
[340336055,1729062898326,484.823038,0.00019608,2]
[340336056,1729062908976,-484.823038,0.00020293,2]
[340336057,1729062909001,-377.8,0.00020596,3]
[340336058,1729062909025,-188.9,0.00020596,3]
[340336059,1729062909047,-566.7,0.00020596,3]
[340336060,1729062909073,-300.0,0.00020604,2]
[340336061,1729062909097,-300.0,0.00020604,2]
[340336062,1729062909121,-500.0,0.00020605,2]
[340336063,1729062909144,-467.22787075,0.00020605,2]
[340336064,1729062909167,-198.3421055,0.00020605,2]
[340336065,1729062909192,-500.0,0.00020605,2]
[340336066,1729062909218,-500.0,0.00020605,2]
[340336067,1729062909242,-500.0,0.00020605,2]
[340336068,1729062909266,-500.0,0.00020605,2]
[340336069,1729062909289,-500.0,0.00020605,2]
[340336070,1729062909314,-547.74199177,0.00020605,2]
[340336071,1729062909337,-134096.95308712,0.00020606,3]
[340336072,1729062909359,-303.04,0.00020606,3]
[340336073,1729062909381,-151.52,0.00020606,3]
[340336074,1729062909407,-454.58,0.00020606,3]
[340336075,1729062909433,-2273.07416072,0.00020606,3]
[340336076,1729062909457,-124182.211329,0.00020606,3]
[340336077,1729062909482,-345.14271592,0.00020614,2]
[340336078,1729062909504,-289.16850693,0.00020614,2]